fUSD/lending_fUSD_20250220
["ID","MTS","AMOUNT","RATE_DAILY","PERIOD"]
[353820481,1740077455065,-190.131182,0.00012329,2]
[353820483,1740077455075,-190.131182,0.00012329,2]
[353820485,1740077455086,-190.131182,0.00012329,2]
[353820487,1740077455096,-190.131182,0.00012329,2]
[353820489,1740077455107,-190.131182,0.00012329,2]
[353820491,1740077455117,-190.131182,0.00012329,2]
[353820493,1740077455127,-190.131182,0.00012329,2]
[353820495,1740077455138,-190.131182,0.00012329,2]
[353820497,1740077455147,-190.131182,0.00012329,2]
[353820499,1740077455157,-190.131182,0.00012329,2]
[353820501,1740077455167,-190.131182,0.00012329,2]
[353820503,1740077455176,-190.131182,0.00012329,2]
[353820505,1740077455185,-190.131182,0.00012329,2]
[353820507,1740077455195,-190.131182,0.00012329,2]
[353820510,1740077455205,-190.131182,0.00012329,2]
[353820512,1740077455214,-190.131182,0.00012329,2]
[353820514,1740077455224,-190.131182,0.00012329,2]
[353820515,1740077455233,-151.0,0.00012329,2]
[353820518,1740077455242,-151.0,0.00012329,2]
[353820520,1740077455252,-151.0,0.00012329,2]
[353820522,1740077455262,-151.0,0.00012329,2]
[353820524,1740077455272,-151.0,0.00012329,2]
[353820526,1740077455282,-151.0,0.00012329,2]
[353820528,1740077455292,-151.0,0.00012329,2]
[353820530,1740077455302,-151.0,0.00012329,2]
[353820532,1740077455312,-151.0,0.00012329,2]
[353820533,1740077455323,-323.790324,0.00012329,2]
[353820536,1740077455334,-323.790324,0.00012329,2]
[353820538,1740077455343,-323.790324,0.00012329,2]
[353820540,1740077455354,-323.790324,0.00012329,2]
[353820542,1740077455363,-323.790324,0.00012329,2]
[353820544,1740077455373,-323.790324,0.00012329,2]
[353820546,1740077455383,-323.790324,0.00012329,2]
[353820548,1740077455392,-151.0,0.00012329,2]
[353820550,1740077455402,-323.790324,0.00012329,2]
[353820552,1740077455412,-323.790324,0.00012329,2]
[353820554,1740077455422,-151.0,0.00012329,2]
[353820556,1740077455432,-323.790324,0.00012329,2]
[353820558,1740077455441,-151.0,0.00012329,2]
[353820560,1740077455450,-323.790324,0.00012329,2]
[353820562,1740077455460,-151.0,0.00012329,2]
[353820564,1740077455470,-323.790324,0.00012329,2]
[353820566,1740077455480,-225.232336,0.00012329,2]
[353820568,1740077455490,-323.790324,0.00012329,2]
[353820570,1740077455499,-323.790324,0.00012329,2]
[353820572,1740077455508,-323.790324,0.00012329,2]
[353820574,1740077455519,-323.790324,0.00012329,2]
[353820576,1740077455528,-323.790324,0.00012329,2]
[353820578,1740077455538,-323.790324,0.00012329,2]
[353820580,1740077455547,-323.790324,0.00012329,2]
[353820582,1740077455557,-323.790332,0.00012329,2]
[353820584,1740077455567,-151.0,0.00012329,2]
[353820586,1740077455576,-151.370162,0.00012329,2]
[353820588,1740077455586,-151.0,0.00012329,2]
[353820590,1740077455596,-151.0,0.00012329,2]
[353820592,1740077455605,-151.0,0.00012329,2]
[353820594,1740077455615,-151.0,0.00012329,2]
[353820596,1740077455625,-151.0,0.00012329,2]
[353820599,1740077455635,-151.0,0.00012329,2]
[353820601,1740077455644,-151.0,0.00012329,2]
[353820603,1740077455654,-151.0,0.00012329,2]
[353820605,1740077455665,-151.0,0.00012329,2]
[353820607,1740077455675,-151.0,0.00012329,2]
[353820609,1740077455684,-151.0,0.00012329,2]
[353820611,1740077455694,-235.073904,0.00012329,2]
[353820613,1740077455704,-151.0,0.00012329,2]
[353820615,1740077455714,-151.0,0.00012329,2]
[353820617,1740077455724,-151.0,0.00012329,2]
[353820619,1740077455734,-151.0,0.00012329,2]
[353820620,1740077455744,-151.0,0.00012329,2]
[353820622,1740077455754,-151.0,0.00012329,2]
[353820624,1740077455765,-151.0,0.00012329,2]
[353820626,1740077455776,-255.564357,0.00012329,2]
[353820628,1740077455786,-151.0,0.00012329,2]
[353820630,1740077455796,-151.0,0.00012329,2]
[353820632,1740077455806,-151.0,0.00012329,2]
[353820635,1740077455817,-151.0,0.00012329,2]
[353820650,1740077455971,-151.0,0.00012329,2]
[353820652,1740077455981,-252.590766,0.00012329,2]
[353820654,1740077455991,-228.733464,0.00012329,2]
[353820656,1740077456002,-228.733464,0.00012329,2]
[353820658,1740077456012,-228.733464,0.00012329,2]
[353820660,1740077456023,-228.733464,0.00012329,2]
[353820662,1740077456033,-228.733464,0.00012329,2]
[353820664,1740077456044,-228.733464,0.00012329,2]
[353820666,1740077456057,-228.733464,0.00012329,2]
[353820668,1740077456066,-4008.603213,0.00012329,2]
[353820670,1740077456076,-4008.603213,0.00012329,2]
[353820672,1740077456086,-4008.603213,0.00012329,2]
[353820674,1740077456096,-228.733464,0.00012329,2]
[353820676,1740077456106,-151.0,0.00012329,2]
[353820678,1740077456116,-4008.603213,0.00012329,2]
[353820680,1740077456130,-228.733464,0.00012329,2]
[353820682,1740077456139,-4008.603213,0.00012329,2]
[353820684,1740077456150,-228.733464,0.00012329,2]
[353820687,1740077456160,-4008.603213,0.00012329,2]
[353820689,1740077456170,-228.733464,0.00012329,2]
[353820691,1740077456180,-4008.603213,0.00012329,2]
[353820693,1740077456190,-228.733464,0.00012329,2]
[353820695,1740077456200,-228.733464,0.00012329,2]
[353820697,1740077456210,-228.733464,0.00012329,2]
[353820699,1740077456219,-4008.603213,0.00012329,2]
[353820700,1740077456229,-2374.95512255,0.00012329,2]
[353820703,1740077456247,-598.62832,0.00012329,2]
[353820706,1740077456262,-1035.01977045,0.00012329,2]
[353820708,1740077456272,-4008.603213,0.00012329,2]
[353820710,1740077456282,-151.0,0.00012329,2]
[353820712,1740077456291,-4008.603213,0.00012329,2]
[353820714,1740077456300,-151.0,0.00012329,2]
[353820716,1740077456310,-151.0,0.00012329,2]
[353820718,1740077456320,-151.0,0.00012329,2]
[353820720,1740077456330,-4008.603213,0.00012329,2]
[353820722,1740077456340,-151.0,0.00012329,2]
[353820724,1740077456350,-4008.603213,0.00012329,2]
[353820726,1740077456361,-151.0,0.00012329,2]
[353820728,1740077456371,-4008.603213,0.00012329,2]
[353820730,1740077456382,-151.0,0.00012329,2]
[353820732,1740077456393,-151.0,0.00012329,2]
[353820734,1740077456404,-151.0,0.00012329,2]
[353820736,1740077456414,-151.0,0.00012329,2]
[353820738,1740077456423,-167.012525,0.00012329,2]
[353820740,1740077456433,-151.0,0.00012329,2]
[353820742,1740077456443,-151.0,0.00012329,2]
[353820744,1740077456452,-151.0,0.00012329,2]
[353820746,1740077456461,-151.0,0.00012329,2]
[353820748,1740077456471,-151.0,0.00012329,2]
[353820750,1740077456480,-151.0,0.00012329,2]
[353820752,1740077456490,-151.0,0.00012329,2]
[353820754,1740077456499,-151.0,0.00012329,2]
[353820756,1740077456508,-151.0,0.00012329,2]
[353820758,1740077456517,-151.0,0.00012329,2]
[353820760,1740077456529,-151.0,0.00012329,2]
[353820762,1740077456539,-151.0,0.00012329,2]
[353820764,1740077456550,-151.0,0.00012329,2]
[353820766,1740077456561,-151.0,0.00012329,2]
[353820768,1740077456571,-151.0,0.00012329,2]
[353820770,1740077456581,-151.0,0.00012329,2]
[353820772,1740077456591,-151.0,0.00012329,2]
[353820774,1740077456600,-151.0,0.00012329,2]
[353820776,1740077456610,-151.0,0.00012329,2]
[353820778,1740077456619,-151.0,0.00012329,2]
[353820780,1740077456630,-151.0,0.00012329,2]
[353820782,1740077456639,-151.0,0.00012329,2]
[353820785,1740077456650,-151.0,0.00012329,2]
[353820787,1740077456659,-151.0,0.00012329,2]
[353820788,1740077456669,-151.0,0.00012329,2]
[353820790,1740077456679,-151.0,0.00012329,2]
[353820792,1740077456688,-151.0,0.00012329,2]
[353820793,1740077456698,-151.0,0.00012329,2]
[353820794,1740077456707,-151.0,0.00012329,2]
[353820795,1740077456717,-151.0,0.00012329,2]
[353820796,1740077456728,-151.0,0.00012329,2]
[353820797,1740077456737,-151.0,0.00012329,2]
[353820798,1740077456747,-151.0,0.00012329,2]
[353820799,1740077456757,-261.52914048,0.00012329,2]
[353820800,1740077456767,-151.0,0.00012329,2]
[353820801,1740077456779,-151.0,0.00012329,2]
[353820802,1740077456789,-151.0,0.00012329,2]
[353820803,1740077456799,-151.0,0.00012329,2]
[353820804,1740077456809,-151.0,0.00012329,2]
[353820805,1740077456819,-151.0,0.00012329,2]
[353820806,1740077456828,-151.0,0.00012329,2]
[353820807,1740077456838,-151.0,0.00012329,2]
[353820808,1740077456848,-151.0,0.00012329,2]
[353820809,1740077456858,-151.0,0.00012329,2]
[353820810,1740077456867,-151.0,0.00012329,2]
[353820811,1740077456878,-151.0,0.00012329,2]
[353820812,1740077456888,-151.0,0.00012329,2]
[353820813,1740077456897,-151.0,0.00012329,2]
[353820814,1740077456907,-151.0,0.00012329,2]
[353820815,1740077456918,-151.0,0.00012329,2]
[353820816,1740077456928,-155.212883,0.00012329,2]
[353820817,1740077456938,-151.0,0.00012329,2]
[353820818,1740077456947,-219.241883,0.00012329,2]
[353820819,1740077456956,-152.323991,0.00012329,2]
[353820820,1740077456966,-151.0,0.00012329,2]
[353820821,1740077456976,-151.642632,0.00012329,2]
[353820822,1740077456986,-151.0,0.00012329,2]
[353820823,1740077456996,-151.0,0.00012329,2]
[353820824,1740077457005,-151.0,0.00012329,2]
[353820825,1740077457015,-151.0,0.00012329,2]
[353820826,1740077457027,-151.0,0.00012329,2]
[353820827,1740077457040,-151.0,0.00012329,2]
[353820828,1740077457054,-151.0,0.00012329,2]
[353820829,1740077457065,-151.0,0.00012329,2]
[353820830,1740077457075,-151.0,0.00012329,2]
[353820831,1740077457086,-151.0,0.00012329,2]
[353820832,1740077457095,-151.0,0.00012329,2]
[353820833,1740077457105,-151.0,0.00012329,2]
[353820834,1740077457115,-151.0,0.00012329,2]
[353820835,1740077457127,-166.310768,0.00012329,2]
[353820836,1740077457137,-151.0,0.00012329,2]
[353820837,1740077457147,-151.0,0.00012329,2]
[353820838,1740077457157,-151.0,0.00012329,2]
[353820839,1740077457166,-156.29509,0.00012329,2]
[353820840,1740077457176,-201.023471,0.00012329,2]
[353820841,1740077457186,-201.023471,0.00012329,2]
[353820843,1740077457196,-201.023471,0.00012329,2]
[353820844,1740077457205,-201.023471,0.00012329,2]
[353820846,1740077457215,-201.023471,0.00012329,2]
[353820847,1740077457225,-201.023471,0.00012329,2]
[353820848,1740077457236,-201.023471,0.00012329,2]
[353820849,1740077457246,-201.023471,0.00012329,2]
[353820850,1740077457256,-201.023471,0.00012329,2]
[353820851,1740077457266,-201.023471,0.00012329,2]
[353820852,1740077457276,-201.023471,0.00012329,2]
[353820853,1740077457285,-201.023471,0.00012329,2]
[353820854,1740077457295,-337.474748,0.00012329,2]
[353820855,1740077457304,-201.023471,0.00012329,2]
[353820856,1740077457314,-337.474748,0.00012329,2]
[353820857,1740077457323,-201.023471,0.00012329,2]
[353820858,1740077457334,-337.474748,0.00012329,2]
[353820859,1740077457343,-201.023471,0.00012329,2]
[353820860,1740077457353,-337.474748,0.00012329,2]
[353820861,1740077457362,-201.023471,0.00012329,2]
[353820862,1740077457371,-337.474748,0.00012329,2]
[353820863,1740077457381,-201.023471,0.00012329,2]
[353820864,1740077457391,-337.474748,0.00012329,2]
[353820865,1740077457400,-201.023471,0.00012329,2]
[353820866,1740077457410,-337.474748,0.00012329,2]
[353820867,1740077457419,-201.023471,0.00012329,2]
[353820868,1740077457429,-337.474748,0.00012329,2]
[353820869,1740077457438,-337.474748,0.00012329,2]
[353820870,1740077457448,-201.023467,0.00012329,2]
[353820871,1740077457458,-337.474748,0.00012329,2]
[353820872,1740077457467,-337.474748,0.00012329,2]
[353820873,1740077457476,-337.474748,0.00012329,2]
[353820874,1740077457486,-337.474748,0.00012329,2]
[353820875,1740077457495,-337.474748,0.00012329,2]
[353820876,1740077457505,-337.474748,0.00012329,2]
[353820877,1740077457514,-337.474748,0.00012329,2]
[353820878,1740077457524,-337.474748,0.00012329,2]
[353820879,1740077457534,-337.474748,0.00012329,2]
[353820880,1740077457543,-151.0,0.00012329,2]
[353820881,1740077457553,-151.0,0.00012329,2]
[353820882,1740077457563,-151.0,0.00012329,2]
[353820883,1740077457572,-151.0,0.00012329,2]
[353820884,1740077457582,-178.961456,0.00012329,2]
[353820885,1740077457592,-151.0,0.00012329,2]
[353820886,1740077457601,-151.0,0.00012329,2]
[353820887,1740077457611,-151.0,0.00012329,2]
[353820888,1740077457620,-151.0,0.00012329,2]
[353820889,1740077457630,-151.0,0.00012329,2]
[353820890,1740077457639,-151.0,0.00012329,2]
[353820891,1740077457649,-151.0,0.00012329,2]
[353820892,1740077457658,-151.0,0.00012329,2]
[353820893,1740077457669,-151.0,0.00012329,2]
[353820894,1740077457678,-151.0,0.00012329,2]
[353820895,1740077457687,-151.0,0.00012329,2]
[353820896,1740077457696,-151.0,0.00012329,2]
[353820897,1740077457706,-151.0,0.00012329,2]
[353820898,1740077457716,-171.501391,0.00012329,2]
[353820899,1740077457725,-500.0,0.00012329,2]
[353820900,1740077457736,-151.0,0.00012329,2]
[353820901,1740077457746,-280.695596,0.00012329,2]
[353820902,1740077457757,-280.695596,0.00012329,2]
[353820903,1740077457767,-218.53958,0.00012329,2]
[353820904,1740077457778,-218.53958,0.00012329,2]
[353820905,1740077457787,-151.0,0.00012329,2]
[353820906,1740077457797,-151.0,0.00012329,2]
[353820907,1740077457807,-151.0,0.00012329,2]
[353820908,1740077457816,-151.0,0.00012329,2]
[353820909,1740077457826,-228.733464,0.00012329,2]
[353820910,1740077457836,-228.733464,0.00012329,2]
[353820911,1740077457845,-4008.603213,0.00012329,2]
[353820912,1740077457854,-4008.603213,0.00012329,2]
[353820913,1740077457864,-228.733464,0.00012329,2]
[353820914,1740077457874,-228.733464,0.00012329,2]
[353820915,1740077457883,-4008.603213,0.00012329,2]
[353820916,1740077457893,-4008.603213,0.00012329,2]
[353820917,1740077457902,-151.613474,0.00012329,2]
[353820918,1740077457912,-151.0,0.00012329,2]
[353820919,1740077457921,-151.0,0.00012329,2]
[353820920,1740077457930,-151.0,0.00012329,2]
[353820921,1740077457940,-151.0,0.00012329,2]
[353820922,1740077457949,-337.474748,0.00012329,2]
[353820923,1740077457959,-337.474744,0.00012329,2]
[353820924,1740077457968,-151.0,0.00012329,2]
[353820925,1740077457978,-602.43914949,0.00012343,2]
[353820926,1740077457987,-150.0,0.00012345,2]
[353820927,1740077457997,-150.0,0.0001235,2]
[353820928,1740077458007,-3383.36979,0.0001235,2]
[353820929,1740077458016,-602.43914949,0.00012351,2]
[353820930,1740077458027,-795.17,0.00012356,2]
[353820931,1740077458036,-500.0,0.00012356,2]
[353820932,1740077458049,-583.98,0.00012356,2]
[353820933,1740077458059,-152.40589681,0.00012357,2]
[353820934,1740077458069,-24252.07351328,0.00012357,2]
[353820936,1740078037487,300.81,8.767e-05,2]
[353820937,1740078058851,693.13,8.382e-05,2]
[353820938,1740078189537,175.32579668,0.00020329,120]
[353820939,1740078330771,401.66,0.00013918,30]
[353820940,1740078407022,-889.86,0.00010197,2]
[353820941,1740078407048,-250.0,0.00010291,2]
[353820942,1740078407074,-300.0,0.00010464,2]
[353820943,1740078407107,-509.14,0.00010465,2]
[353820944,1740078454694,550.0,0.0001,2]
[353820945,1740078474398,2000.0,0.0001019,2]
[353820946,1740078536723,620.3,0.00010235,2]
[353820951,1740078601280,300.0,0.00010464,2]
[353820966,1740078632348,-490.58,0.00010465,2]
[353820967,1740078632358,-506.18,0.00010465,2]
[353820968,1740078632368,-364.35506792,0.00010465,2]
[353820969,1740078632400,-125.77493208,0.00010465,2]
[353820970,1740078632410,-221.57884445,0.00010465,2]
[353820971,1740078632504,-273.70115555,0.00010465,2]
[353820972,1740078632514,-505.58,0.00010465,2]
[353820973,1740078632523,-500.99,0.00010465,2]
[353820974,1740078632533,-505.61,0.00010465,2]
[353820975,1740078632542,-495.85,0.00010465,2]
[353820976,1740078632551,-508.94,0.00010465,2]
[353820977,1740078632561,-497.94,0.00010465,2]
[353820978,1740078632571,-497.76,0.00010465,2]
[353820979,1740078632580,-271.32928299,0.00010465,2]
[353820980,1740078632592,-230.79071701,0.00010465,2]
[353820981,1740078632602,-313.07874299,0.00010466,2]
[353820982,1740078632614,-188.54125701,0.00010466,2]
[353820983,1740078632624,-503.79,0.00010466,2]
[353820984,1740078632633,-476.41606739,0.00010466,2]
[353820985,1740078632642,-506.2,0.00010466,2]
[353820986,1740078632651,-500.98,0.00010466,2]
[353820987,1740078632661,-498.01,0.00010466,2]
[353820988,1740078632670,-507.95,0.00010466,2]
[353820989,1740078632679,-166.0826756,0.00010466,2]
[353820990,1740078632690,-331.9973244,0.00010466,2]
[353820991,1740078632699,-505.32,0.00010466,2]
[353820992,1740078632709,-506.65,0.00010466,2]
[353820993,1740078632718,-501.61,0.00010466,2]
[353820994,1740078632728,-496.77,0.00010466,2]
[353820995,1740078632737,-493.02,0.00010466,2]
[353820996,1740078632747,-494.66,0.00010467,2]
[353820997,1740078632756,-496.62,0.00010467,2]
[353820998,1740078632766,-497.16,0.00010467,2]
[353820999,1740078632775,-502.38,0.00010467,2]
[353821000,1740078632784,-337.71793214,0.00010467,2]
[353821001,1740078632796,-164.87206786,0.00010467,2]
[353821002,1740078632807,-504.1,0.00010467,2]
[353821003,1740078632816,-490.41,0.00010467,2]
[353821004,1740078632826,-501.49,0.00010467,2]
[353821006,1740078632835,-493.36,0.00010467,2]
[353821008,1740078632844,-504.78,0.00010467,2]
[353821010,1740078632853,-498.07,0.00010467,2]
[353821012,1740078632863,-496.45,0.00010467,2]
[353821014,1740078632872,-503.13,0.00010467,2]
[353821016,1740078632881,-503.2,0.00010467,2]
[353821018,1740078632890,-501.51,0.00010467,2]
[353821020,1740078632899,-503.75,0.00010467,2]
[353821022,1740078632908,-30.37793214,0.00010467,2]
[353821024,1740078632920,-475.01206786,0.00010467,2]
[353821026,1740078632929,-491.5,0.00010467,2]
[353821028,1740078632939,-30.42793214,0.00010467,2]
[353821031,1740078632958,-465.44206786,0.00010467,2]
[353821033,1740078632969,-60.0668521,0.00010467,2]
[353821464,1740078638238,-442.3531479,0.00010467,2]
[353821465,1740078638249,-494.31,0.00010467,2]
[353821466,1740078638258,-507.29,0.00010467,2]
[353821467,1740078638268,-498.5,0.00010468,2]
[353821468,1740078638278,-495.69,0.00010469,2]
[353821469,1740078638288,-491.46,0.00010471,2]
[353821470,1740078638297,-1824.67,0.00010475,2]
[353821471,1740078638311,-494.81,0.00010476,2]
[353821472,1740078638322,-499.64,0.00010486,2]
[353821473,1740078638332,-500.0,0.00010486,2]
[353821474,1740078638342,-161.59,0.00010501,2]
[353821475,1740078638351,-491.94,0.00010505,2]
[353821476,1740078638361,-1000.0,0.00010538,2]
[353821477,1740078638371,-501.35,0.00010543,2]
[353821478,1740078638381,-500.0,0.00010579,2]
[353821479,1740078638391,-509.4,0.00010617,2]
[353821480,1740078638400,-693.13,0.00010646,2]
[353821481,1740078638409,-22675.36,0.00010649,2]
[353821482,1740078638418,-496.3,0.00010766,2]
[353821483,1740078638428,-1785.0,0.0001078,2]
[353821484,1740078638438,-609.51564584,0.00010872,2]
[353821485,1740078638449,-150.0,0.000109,2]
[353821486,1740078638458,-150.0,0.00010949,2]
[353821487,1740078638467,-3915.0,0.00010949,2]
[353821488,1740078638477,-1008.0,0.00010949,2]
[353821489,1740078638487,-500.0,0.00010958,2]
[353821490,1740078638496,-500.0,0.00010958,2]
[353821491,1740078638505,-500.0,0.00010958,2]
[353821492,1740078638515,-500.0,0.00010958,2]
[353821493,1740078638524,-500.0,0.00010958,2]
[353821494,1740078638534,-500.0,0.00011041,2]
[353821495,1740078638543,-500.0,0.00011123,2]
[353821496,1740078638553,-500.0,0.00011205,2]
[353821497,1740078638564,-150.0,0.00011216,2]
[353821498,1740078638574,-281.55794804,0.00011244,2]
[353821499,1740078638583,-500.0,0.00011287,2]
[353821500,1740078638593,-500.0,0.00011369,2]
[353821501,1740078638602,-462.3650651,0.00011452,2]
[353821503,1740078638618,-37.6349349,0.00011452,2]
[353821505,1740078638627,-420.0,0.00011505,2]
[353821507,1740078638636,-327.95,0.00011507,2]
[353821509,1740078638645,-150.0,0.00011512,2]
[353821511,1740078638654,-150.0,0.00011512,2]
[353821513,1740078638663,-500.0,0.00011513,2]
[353821515,1740078638673,-620.3,0.00011514,2]
[353821517,1740078638683,-500.0,0.00011534,2]
[353821519,1740078638691,-500.0,0.00011616,2]
[353821520,1740078638700,-271.20926966,0.00011698,2]
[353821521,1740078638709,-151.399335,0.00011762,2]
[353821522,1740078638718,-170.183,0.0001178,2]
[353821523,1740078638727,-1000.0,0.00011855,2]
[353821525,1740078638736,-473.33588866,0.000119,2]
[353821527,1740078638745,-2365.116,0.00011945,2]
[353821529,1740078638754,-600.0,0.00012,2]
[353821531,1740078638762,-813.03519498,0.00012041,2]
[353821533,1740078638771,-1008.81,0.00012054,2]
[353821534,1740078638780,-648.0976,0.000121,2]
[353821535,1740078638790,-1381.5537,0.000121,2]
[353821536,1740078638799,-222.5978,0.000121,2]
[353821538,1740078638809,-155.5353,0.000121,2]
[353821539,1740078638818,-2046.0429,0.000121,2]
[353821541,1740078638828,-596.8429981,0.00012109,2]
[353821543,1740078638838,-473.33588846,0.00012176,2]
[353821545,1740078638847,-150.0,0.00012198,2]
[353821547,1740078638856,-12195.530541,0.000122,2]
[353821549,1740078638866,-2500.0,0.00012222,2]
[353821551,1740078638875,-5004.0630646,0.00012222,2]
[353821553,1740078638887,-2430.48798615,0.00012222,2]
[353821555,1740078638898,-2336.68164723,0.00012222,2]
[353821728,1740078640523,-1692.04651401,0.00012222,2]
[353821748,1740078640706,-732.25132899,0.00012222,2]
[353821750,1740078640715,-806.56928904,0.00012244,2]
[353821756,1740078640759,-264.2367437,0.00012244,2]
[353822328,1740078646421,-1110.0,0.00011125,2]
[353822329,1740078646431,-503.70970627,0.00012244,2]
[353822345,1740078646582,-1373.12175,0.00012244,2]
[353822367,1740078646785,-1571.87394314,0.00012244,2]
[353822369,1740078646796,-470.0,0.00012244,2]
[353822371,1740078646807,-418.18435819,0.00012244,2]
[353823183,1740079138564,156.51,8.767e-05,2]
[353823185,1740079170223,657.57,9.299e-05,2]
[353823186,1740079507994,33766.76,0.0001,2]
[353823187,1740079533189,381.57,0.00013918,30]
[353823196,1740079831647,-300.0,9.999e-05,2]
[353823197,1740079831658,-150.0,9.999e-05,2]
[353823198,1740079831667,-42511.65706916,0.0001,2]
[353823199,1740079831702,-3832.53513688,0.0001,2]
[353823200,1740079831713,-17059.32507305,0.0001,2]
[353823207,1740079837537,-3746.24,0.0001,2]
[353823208,1740079837549,-284.74550463,0.0001,2]
[353823209,1740079837656,-2627.17224825,0.0001,2]
[353823210,1740079837668,-2763.70000001,0.0001,2]
[353823403,1740079839509,-9428.85614516,0.0001,2]
[353823410,1740079839563,-4931.6666505,0.0001,2]
[353823797,1740079843260,-550.0,0.0001,2]
[353824052,1740079845797,-965.08937264,0.0001,2]
[353825036,1740080178787,224.43,8.767e-05,2]
[353825037,1740080260384,624.69,8.602e-05,2]
[353825038,1740080597894,362.49,0.00013918,30]
[353825042,1740081031919,-150.0,9.852e-05,2]
[353825043,1740081031929,-573.1323,9.9e-05,2]
[353825044,1740081031939,-2191.18966,9.9e-05,2]
[353825055,1740081037714,-383.43474,9.9e-05,2]
[353825056,1740081037723,-150.0,9.974e-05,2]
[353825057,1740081037733,-150.0,9.999e-05,2]
[353825058,1740081037742,-9190.740192,0.0001,2]
[353825059,1740081037915,-3328.12935136,0.0001,2]
[353825227,1740081039752,-619.39818052,0.0001,2]
[353825236,1740081039886,-5324.412088,0.0001,2]
[353825237,1740081039913,-147245.69819329,0.0001,2]
[353825238,1740081039923,-365.77525998,0.0001,2]
[353825239,1740081039932,-185.64636451,0.0001,2]
[353825240,1740081039941,-198.04506208,0.0001,2]
[353825241,1740081039950,-550.0,0.0001,2]
[353825242,1740081039960,-1995.40116,0.0001,2]
[353825244,1740081039969,-665.7392569,0.0001,2]
[353825246,1740081039978,-9329.0,0.000102,2]
[353825248,1740081039988,-745.17362184,0.00010292,2]
[353825250,1740081039997,-154.0,0.00010356,2]
[353825252,1740081040007,-914.23,0.00010403,2]
[353825254,1740081040016,-150.0,0.00010415,2]
[353825256,1740081040026,-3080.05,0.00010451,2]
[353825258,1740081040036,-1000.0,0.00010454,2]
[353825260,1740081040045,-1287.72,0.00010468,2]
[353825262,1740081040055,-250.0,0.0001048,2]
[353825264,1740081040065,-737.12,0.0001048,2]
[353825266,1740081040074,-2000.0,0.00010485,2]
[353825268,1740081040084,-943.42,0.00010486,2]
[353825270,1740081040093,-5552.0,0.000105,3]
[353825272,1740081040102,-336.38,0.00010507,3]
[353825274,1740081040111,-500.0,0.00010536,2]
[353825276,1740081040121,-422.98,0.0001054,2]
[353825278,1740081040130,-14596.64,0.00010551,2]
[353825280,1740081040139,-1352.98,0.00010591,2]
[353825282,1740081040148,-517.16,0.00010683,2]
[353825284,1740081040157,-150.0,0.00010698,2]
[353825286,1740081040167,-776.07,0.000107,2]
[353825288,1740081040176,-440.27,0.000107,2]
[353825290,1740081040186,-440.27,0.000107,2]
[353825292,1740081040195,-776.07,0.000107,2]
[353825293,1740081040205,-585.55,0.000107,2]
[353825295,1740081040214,-440.27,0.000107,2]
[353825297,1740081040224,-439.87,0.000107,2]
[353825299,1740081040233,-1500.0,0.00010701,2]
[353825301,1740081040243,-152.1,0.00010701,2]
[353825303,1740081040252,-271.35,0.000108,2]
[353825305,1740081040262,-5552.0,0.000108,5]